[Event "Croatian Team Cup Final 2022"]
[Site "Vodice"]
[Date "2022.05.19"]
[Round "3.15"]
[White "Blazeka, Matej"]
[Black "Rubil, Marko"]
[Result "1/2-1/2"]
[ECO "D18"]
[WhiteElo "2333"]
[BlackElo "2272"]
[Annotator "TA"]
[PlyCount "36"]
[EventDate "2022.05.18"]
[EventType "team-tourn"]
[EventCountry "CRO"]
[SourceTitle "playchess.com"]
[Source "ChessBase"]
[SourceQuality "1"]
[TimeControl "40/5400+30:1800+30"]

{[%evp 21,36,0,16,0,15,0,12,0,0,0,0,0,0,0,0,0,22]} 1. d4 {[%emt 0:04:48] Huebner,R} d5 {[%emt 0:07:25]} 2. c4 {[%emt 0:00:04]} c6 {[%emt 0:00:07]} 3. Nc3 {[%emt 0:02:10]} Nf6 {[%emt 0:00:12]} 4. Nf3 {[%emt 0:00:31]} dxc4 {[%emt 0:00:40]} 5. a4 {[%emt 0:01:47]} Bf5 {[%emt 0:00:22]} 6. e3 {[%emt 0:00:51]} e6 {[%emt 0:00:08]} 7. Bxc4 {[%emt 0:00:38]} Bb4 {[%emt 0:00:05]} 8. O-O {[%emt 0:01:26]} Nbd7 {[%emt 0:00:13]} 9. Qe2 {[%emt 0:08:02]} Bg6 {[%emt 0:00:23]} 10. Na2 {[%emt 0:07:35]} Bd6 {[%emt 0:06:12]} 11. Nc3 {[%emt 0:00:09]} Bb4 {[%emt 0:09:54] The position is equal.} 12. Na2 {[%emt 0:00:04] D18: Slav Defence: 5 a4 Bf5 6 e3.} Bd6 {[%emt 0:00:05]} 13. Nc3 {[%emt 0:00:04]} O-O {[%emt 0:00:15]} 14. e4 {[%emt 0:04:06] [#] Threatens to win with e5.} e5 {[%emt 0:00:37]} 15. dxe5 {[%emt 0:05:14]} Nxe5 {[%emt 0:00:10]} 16. Nxe5 {[%emt 0:01:06]} Bxe5 {[%emt 0:00:09]} 17. f3 {[%emt 0:00:17]} Qc7 {[%emt 0:15:24]} 18. g3 {[%emt 0:00:34] [#]} Qd8 $146 {[%emt 0:32:14] An interesting draw.  Weighted Error Value: White=0.06 (flawless) /Black=0.02 (flawless)} ({Predecessor:} 18... Kh8 19. Be3 Nd7 20. Rfd1 Rae8 21. a5 f5 22. Bxa7 fxe4 23. Nxe4 Bxe4 24. fxe4 b5 25. axb6 Nxb6 26. Kg2 Nxc4 27. Qxc4 Bxb2 28. Ra2 {½-½ (26) Nikolic,P (2641)-Van Wely,L (2629) Batumi 1999 CBM 074 [Huebner,R]}) 1/2-1/2

[Event "Croatian Team Cup Final 2022"]
[Site "Vodice"]
[Date "2022.05.19"]
[Round "3.16"]
[White "Perusko, Niko"]
[Black "Vujakovic, Branko"]
[Result "0-1"]
[ECO "D77"]
[WhiteElo "1867"]
[BlackElo "2292"]
[Annotator "TA"]
[PlyCount "80"]
[EventDate "2022.05.18"]
[EventType "team-tourn"]
[EventCountry "CRO"]
[SourceTitle "playchess.com"]
[Source "ChessBase"]
[SourceQuality "1"]
[TimeControl "40/5400+30:1800+30"]

{[%evp 21,80,41,46,22,33,-10,0,3,5,9,9,15,22,0,10,0,0,0,0,0,0,-9,-5,-14,0,-45,-52,-43,-47,-32,-51,-38,-8,-8,-1,-10,0,-24,0,0,0,0,0,-720,-697,-958,-1015,-1062,-922,-1080,-1048,-3108,-2105,-1837,-1395,-29978,-29979,-29975,-29976,-29978,-29975]} 1. Nf3 {[%emt 0:00:03]} Nf6 {[%emt 0:01:24]} 2. g3 {[%emt 0:00:06]} g6 {[%emt 0:00:16]} 3. Bg2 {[%emt 0:00:06]} Bg7 {[%emt 0:00:11]} 4. O-O {[%emt 0:00:06]} d5 {[%emt 0:01:10]} 5. d4 {[%emt 0:00:09]} O-O {[%emt 0:00:11]} 6. c4 {[%emt 0:00:16]} dxc4 {[%emt 0:00:40]} 7. Na3 {[%emt 0:00:48][%cal Bb1a3,Ba3c4,Bc4e3][%mdl 32]} Nc6 {[%emt 0:03:49]} 8. Nxc4 {[%emt 0:02:40]} Be6 {[%emt 0:00:21]} 9. b3 {[%emt 0:00:33]} Bd5 {[%emt 0:00:19]} 10. Bb2 {[%emt 0:00:10]} a5 {[%emt 0:00:30]} 11. Rc1 {[%emt 0:02:34]} a4 {[%emt 0:02:49]} 12. Ne3 {[%emt 0:02:57] D77: Fianchetto Grünfeld: 6 0-0: Replies other than 6...c6.} Be4 {[%emt 0:04:24]} 13. Ne5 {[%emt 0:18:30]} (13. bxa4 $5 {[%cal Rf3e5]} Bh6 14. Nh4 $11) 13... Bxg2 {[%emt 0:02:34] [#]} 14. Nxg2 $146 {[%emt 0:00:14] The position is equal.} ({Predecessor:} 14. Kxg2 Ra6 15. Nxc6 bxc6 16. bxa4 Qa8 17. Kg1 Rxa4 18. a3 Rb8 19. Rc2 e6 20. Qd3 Nd5 21. Nc4 Qa6 22. Ne5 Qxd3 23. Nxd3 Bxd4 24. Bxd4 Rxd4 25. Rxc6 Ra8 26. Nb4 {½-½ (26) Lazic,M (2438)-Mogranzini,R (2422) Perugia 2009}) 14... Nxe5 {[%emt 0:06:29]} 15. dxe5 {[%emt 0:00:50]} Nd7 {[%emt 0:10:34]} 16. f4 {[%emt 0:13:37]} c6 {[%emt 0:04:13]} 17. Bd4 {[%emt 0:28:14]} Qa5 {[%emt 0:14:16]} 18. e6 {[%emt 0:09:25]} Bxd4+ {[%emt 0:09:18]} 19. Qxd4 {[%emt 0:00:04]} Qb6 {[%emt 0:02:00]} 20. exf7+ {[%emt 0:00:38]} Kxf7 {[%emt 0:01:25]} 21. Rfd1 {[%emt 0:00:50]} axb3 {[%emt 0:04:51]} 22. axb3 {[%emt 0:00:08]} Rfd8 {[%emt 0:01:31]} 23. Rd3 {[%emt 0:07:36]} Qxd4+ {[%emt 0:03:44]} 24. Rxd4 {[%emt 0:00:02]} Nf6 {[%emt 0:00:36]} 25. Rxd8 {[%emt 0:10:02]} Rxd8 $15 {[%emt 0:00:02][%mdl 4096] Endgame KRN-KRN} 26. Ne3 {[%emt 0:01:41]} Ra8 {[%emt 0:11:15]} 27. Nc4 {[%emt 0:00:49]} Ra2 {[%emt 0:00:02]} 28. Kf1 {[%emt 0:00:35]} Ke6 {[%emt 0:00:50]} 29. Rd1 {[%emt 0:00:23]} Ne4 {[%emt 0:03:16]} (29... b5 $5 {[%cal Rb5c4]} 30. Ne5 c5 $15) 30. Rd4 {[%emt 0:00:33]} Nc3 {[%emt 0:03:26]} 31. Nd2 {[%emt 0:00:44]} Rb2 {[%emt 0:03:04]} 32. Kf2 $2 {[%emt 0:00:28][%mdl 8192] [#]} (32. Ke1 $11) 32... Rxd2 $1 $19 {[%emt 0:02:11][%mdl 512]} 33. Rxd2 {[%emt 0:00:04] Kf3 is the strong threat. KR-KN} (33. Rd3 Rxe2+) 33... Ne4+ {[%emt 0:00:02]} 34. Ke1 {[%emt 0:00:08]} Nxd2 {[%emt 0:00:06]} 35. Kxd2 {[%emt 0:00:02] [#] KP-KP} Kf5 $1 {[%emt 0:00:22] Strongly threatening ...Kg4.} 36. Kd3 {[%emt 0:00:28] [#]} Kg4 $1 {[%emt 0:00:18]} 37. Kd4 {[%emt 0:00:08]} Kh3 {[%emt 0:00:24]} 38. e4 {[%emt 0:00:19]} Kxh2 {[%emt 0:00:15] Black mates.} 39. g4 {[%emt 0:00:11]} Kg3 {[%emt 0:00:09][%csl LRf4,LRg4]} 40. f5 {[%emt 0:00:00]} Kxg4 {[%emt 0:01:25] Weighted Error Value: White=0.95/Black=0.17 (very precise)} 0-1

[Event "Croatian Team Cup Final 2022"]
[Site "Vodice"]
[Date "2022.05.19"]
[Round "3.17"]
[White "Vojak, Daniel"]
[Black "Golubovic, Boris"]
[Result "1/2-1/2"]
[ECO "B08"]
[WhiteElo "2335"]
[BlackElo "2360"]
[Annotator "TA"]
[PlyCount "57"]
[EventDate "2022.05.18"]
[EventType "team-tourn"]
[EventCountry "CRO"]
[SourceTitle "playchess.com"]
[Source "ChessBase"]
[SourceQuality "1"]
[TimeControl "40/5400+30:1800+30"]

{[%evp 14,57,43,27,48,41,45,40,58,59,64,61,94,95,105,86,93,86,89,92,95,57,59,43,54,7,0,0,19,7,16,1,39,0,0,0,54,33,53,34,54,0,0,0,0,0]} 1. e4 {[%emt 0:00:03]} Nc6 {[%emt 0:03:40]} 2. Nf3 {[%emt 0:00:20]} d6 {[%emt 0:00:04]} 3. d4 {[%emt 0:00:31]} Nf6 {[%emt 0:00:14]} 4. Nc3 {[%emt 0:00:51]} g6 {[%emt 0:01:18]} 5. d5 {[%emt 0:04:35]} Nb8 {[%emt 0:01:17]} 6. Be2 {[%emt 0:02:19]} Bg7 {[%emt 0:00:14]} 7. O-O {[%emt 0:00:06]} O-O {[%emt 0:01:06]} 8. a4 {[%emt 0:01:02][%cal Ba2a4,Ba4a5][%mdl 32]} c6 {[%emt 0:03:20] B08: Pirc Defence: Classical System.} 9. a5 {[%emt 0:01:05]} Bg4 {[%emt 0:14:17]} 10. Be3 {[%emt 0:05:04] [#]} Nfd7 $146 {[%emt 0:19:34] White is slightly better.} ({Predecessor:} 10... Qc7 11. h3 Bxf3 12. Bxf3 Nbd7 13. a6 cxd5 14. exd5 bxa6 15. Rxa6 Nb6 16. Bd4 Nfd7 17. Bxg7 Kxg7 18. Qd4+ Kg8 19. Rfa1 Rfc8 20. Be2 {1-0 (62) Bojkov,D (2509)-Chatalbashev,B (2499) Pleven 2005}) 11. h3 {[%emt 0:04:00]} Bxf3 {[%emt 0:00:37]} 12. Bxf3 {[%emt 0:00:08]} c5 {[%emt 0:10:05]} 13. Qd2 {[%emt 0:08:46]} Na6 {[%emt 0:03:36]} 14. Bh6 {[%emt 0:02:10]} Nc7 {[%emt 0:00:14]} 15. Bxg7 {[%emt 0:04:20]} Kxg7 {[%emt 0:00:08]} 16. Be2 {[%emt 0:01:09]} Rb8 {[%emt 0:01:34]} 17. Nd1 {[%emt 0:11:04] 0x0.001922132919dp-1022s more active pieces.} Nf6 {[%emt 0:02:04]} 18. Bd3 {[%emt 0:07:57]} b5 {[%emt 0:11:45]} 19. c3 {[%emt 0:02:35]} (19. axb6 $1 $14 {might be stronger.} axb6 20. Ne3) 19... c4 {[%emt 0:07:46]} 20. Bc2 {[%emt 0:00:16]} e6 {[%emt 0:00:04][%cal Re6d5]} 21. dxe6 {[%emt 0:02:26]} Nxe6 {[%emt 0:00:07]} 22. Ne3 {[%emt 0:00:44] Inhibits d5.} Nc5 {[%emt 0:10:46]} 23. Qd4 {[%emt 0:00:55]} (23. g4 {is interesting.} Rb7 24. g5 Nh5 25. f4) 23... Ne6 {[%emt 0:04:37]} 24. Qd2 {[%emt 0:02:50]} ({Much weaker is} 24. Qxa7 Nc5 25. Rfd1 Rb7 26. Qxc5 dxc5 $15) (24. Qd1 $11) 24... Nc5 $14 {[%emt 0:00:02]} 25. Rfd1 {[%emt 0:03:45] aiming for e5.} Re8 {[%emt 0:00:52]} 26. Qd4 {[%emt 0:02:27]} Kg8 {[%emt 0:00:13]} 27. Nd5 {[%emt 0:03:57]} ({Better is} 27. f3 $14) 27... Nxd5 $11 {[%emt 0:00:31]} 28. Qxd5 {[%emt 0:00:19]} Re6 {[%emt 0:00:24]} 29. Rd4 {[%emt 0:09:03] Weighted Error Value: White=0.14 (very precise) /Black=0.07 (flawless)} 1/2-1/2

[Event "Croatian Team Cup Final 2022"]
[Site "Vodice"]
[Date "2022.05.20"]
[Round "3.18"]
[White "Petrov, Jole"]
[Black "Cupic, Lovro"]
[Result "1/2-1/2"]
[ECO "A37"]
[WhiteElo "2383"]
[BlackElo "2271"]
[Annotator "TA"]
[PlyCount "62"]
[EventDate "2022.05.18"]
[EventType "team-tourn"]
[EventCountry "CRO"]
[SourceTitle "playchess.com"]
[Source "ChessBase"]
[SourceQuality "1"]
[TimeControl "40/5400+30:1800+30"]

{[%evp 12,62,13,0,0,-12,20,20,21,27,48,39,46,50,51,16,12,12,6,-15,0,0,0,0,0,0,0,-16,-14,-1,0,0,18,27,29,19,37,0,22,-4,-6,-13,-14,-14,-14,-16,-16,-8,-4,-2,-7,-4,-4]} 1. Nf3 {[%emt 0:00:16]} c5 {[%emt 0:00:04]} 2. c4 {[%emt 0:00:32]} Nc6 {[%emt 0:00:06]} 3. g3 {[%emt 0:05:16]} e5 {[%emt 0:00:08]} 4. Nc3 {[%emt 0:01:44]} g6 {[%emt 0:00:12]} 5. Bg2 {[%emt 0:00:14]} Bg7 {[%emt 0:00:10]} 6. d3 {[%emt 0:00:46]} d6 {[%emt 0:01:00]} 7. Nd2 {[%emt 0:00:53]} Nge7 {[%emt 0:01:37] A37: Symmetrical English vs ...g6: 4 Bg2 Bg7 5 Nf3.} 8. Nf1 {[%emt 0:00:11]} Nf5 {[%emt 0:04:51]} 9. Ne3 {[%emt 0:01:13]} Nxe3 {[%emt 0:00:17]} 10. Bxe3 {[%emt 0:02:33] [#]} Ne7 $146 {[%emt 0:05:43]} ({Predecessor:} 10... Be6 11. a3 Qd7 12. Nd5 Ne7 13. Nxe7 Kxe7 14. b4 Rhe8 15. bxc5 dxc5 16. Rb1 Rab8 {½-½ (30) Karlsson,L (2562)-Hall,J (2524) Sweden 2001}) 11. a3 {[%emt 0:13:19]} O-O {[%emt 0:00:27]} 12. Rb1 {[%emt 0:02:35]} f5 {[%emt 0:03:25]} 13. f4 {[%emt 0:16:06]} Rb8 {[%emt 0:03:16]} 14. Qd2 {[%emt 0:02:28]} b6 {[%emt 0:03:10]} 15. b4 {[%emt 0:02:16]} exf4 {[%emt 0:02:02]} 16. Bxf4 {[%emt 0:08:19]} Bb7 {[%emt 0:00:19]} 17. O-O {[%emt 0:07:34]} Bxg2 {[%emt 0:03:33]} 18. Kxg2 {[%emt 0:00:04]} Rb7 {[%emt 0:00:15]} 19. Bg5 {[%emt 0:04:56]} Qa8 {[%emt 0:05:15]} 20. Kg1 {[%emt 0:07:18]} (20. Bh6 {keeps more tension.} Rd7+ 21. Kg1 Bxh6 22. Qxh6 cxb4 23. Qe3) 20... Re8 {[%emt 0:05:10]} 21. Rbe1 {[%emt 0:09:13]} cxb4 {[%emt 0:23:38]} 22. axb4 {[%emt 0:00:04]} a5 {[%emt 0:00:14]} 23. Nb5 {[%emt 0:04:55]} Rd7 {[%emt 0:03:15]} 24. e4 {[%emt 0:01:12][%cal Oc4c5] Inhibits d5.} fxe4 {[%emt 0:01:36] The position is equal.} 25. Rxe4 {[%emt 0:05:07] [#] Threatens to win with Qe2.} (25. dxe4 $5 {[%cal Re4e5]} Nc6 26. bxa5 Nxa5 27. Qd5+ (27. Nxd6 $2 Nxc4 28. Nxc4 Rxd2 $19) 27... Qxd5 28. cxd5 $11) 25... d5 {[%emt 0:01:22]} 26. Rxe7 {[%emt 0:03:38]} (26. cxd5 {is more complex.} Qxd5 27. Nc3 Qb3 28. Ne2) 26... Rexe7 {[%emt 0:00:29]} 27. Bxe7 {[%emt 0:00:04]} Rxe7 {[%emt 0:00:10]} 28. bxa5 {[%emt 0:00:40]} bxa5 {[%emt 0:00:17]} 29. Qg2 $1 {[%emt 0:01:01]} Qb7 {[%emt 0:15:32]} 30. Qxd5+ {[%emt 0:00:23]} Qxd5 {[%emt 0:00:06]} 31. cxd5 {[%emt 0:00:03]} Rd7 {[%emt 0:11:53] Weighted Error Value: White=0.09 (flawless) /Black=0.06 (flawless)} 1/2-1/2

[Event "Croatian Team Cup Final 2022"]
[Site "Vodice"]
[Date "2022.05.19"]
[Round "3.19"]
[White "Starcevic, Ante Leon"]
[Black "Zelenika, Srdjan"]
[Result "1-0"]
[ECO "E76"]
[WhiteElo "2227"]
[BlackElo "2213"]
[Annotator "TA"]
[PlyCount "85"]
[EventDate "2022.05.18"]
[EventType "team-tourn"]
[EventCountry "CRO"]
[SourceTitle "playchess.com"]
[Source "ChessBase"]
[SourceQuality "1"]
[TimeControl "40/5400+30:1800+30"]

{[%evp 17,85,25,29,19,47,-12,82,16,24,31,110,108,95,88,123,93,109,109,133,112,144,32,26,7,17,25,69,0,-4,-4,0,0,-10,-13,-12,-15,10,20,25,-24,0,0,0,0,45,43,65,37,46,33,25,26,18,36,34,-20,-8,-316,1096,1058,1729,1730,1544,1248,29991,29992,29993,29994,29994,29995]} 1. d4 {[%emt 0:01:54]} Nf6 {[%emt 0:00:09]} 2. c4 {[%emt 0:00:05]} g6 {[%emt 0:00:06]} 3. Nc3 {[%emt 0:00:04]} Bg7 {[%emt 0:00:05]} 4. e4 {[%emt 0:00:06]} d6 {[%emt 0:00:09]} 5. f4 {[%emt 0:00:04]} O-O {[%emt 0:00:33]} 6. Nf3 {[%emt 0:00:07]} Na6 {[%emt 0:00:19]} 7. Bd3 {[%emt 0:00:14]} e5 {[%emt 0:01:05]} 8. fxe5 {[%emt 0:00:06]} dxe5 {[%emt 0:00:06]} 9. d5 {[%emt 0:00:03]} Nc5 {[%emt 0:02:54]} 10. Bc2 {[%emt 0:00:06] E76: King's Indian: Four Pawns Attack: Lines specific to 6 Nf3 move-order.} a5 {[%emt 0:02:02] [#]} 11. b3 $146 {[%emt 0:09:02] [#]} ({Better is} 11. Qe2 $14) ({Predecessor:} 11. O-O Ne8 12. Bg5 f6 13. Be3 b6 14. a3 Nd6 15. Nd2 f5 16. Qe2 a4 17. Bxc5 bxc5 18. Nxa4 {1-0 (53) Moranda,W (2622)-Kosakowski,J (2445) Bydgoszcz 2021}) 11... h6 {[%emt 0:13:08]} (11... Nfxe4 $1 $11 {remains equal.} 12. Nxe4 (12. Bxe4 f5) 12... Nxe4 13. Bxe4 f5) 12. Be3 {[%emt 0:06:49]} (12. O-O $16) 12... Qe7 {[%emt 0:02:37]} 13. h3 {[%emt 0:01:27]} Rd8 {[%emt 0:05:24]} (13... Nh5 $14) 14. Qd2 $16 {[%emt 0:02:25]} Kh7 {[%emt 0:01:30]} 15. O-O {[%emt 0:00:53]} Na6 {[%emt 0:11:38]} 16. Rae1 {[%emt 0:07:59]} Bd7 {[%emt 0:13:25]} 17. Qf2 {[%emt 0:02:01]} Ne8 {[%emt 0:04:31]} 18. Rd1 {[%emt 0:09:33]} b6 {[%emt 0:08:53] [#] Prevents c5.} 19. Ne1 {[%emt 0:27:10] White is more active.} (19. d6 $1 $16 {[%cal Rd6e7]} Nxd6 20. Nd5) 19... Nd6 $14 {[%emt 0:07:13]} 20. Nd3 {[%emt 0:04:31]} f5 {[%emt 0:04:11]} 21. exf5 {[%emt 0:08:08]} (21. c5 {looks sharper.} bxc5 22. Nxc5 Nxc5 23. Bxc5 Rf8 24. Qe2) 21... gxf5 {[%emt 0:00:53] ...e4 is the strong threat.} 22. c5 {[%emt 0:01:03]} (22. Nb5 $1 $14) 22... bxc5 $11 {[%emt 0:03:27]} 23. Nxc5 {[%emt 0:00:50]} Nxc5 {[%emt 0:03:22]} 24. Bxc5 {[%emt 0:00:10]} Rf8 {[%emt 0:00:34]} 25. Ne2 {[%emt 0:03:47]} Kh8 {[%emt 0:01:45]} 26. Ng3 {[%emt 0:00:27]} e4 {[%emt 0:02:59]} 27. Nh5 {[%emt 0:01:06]} Be5 {[%emt 0:02:13]} 28. Be3 {[%emt 0:02:40]} (28. Qe3 $142) 28... Kh7 {[%emt 0:01:59]} 29. Nf4 {[%emt 0:03:11]} Rg8 {[%emt 0:01:35]} 30. Rc1 {[%emt 0:00:30]} Rab8 {[%emt 0:01:54]} 31. Bd1 {[%emt 0:00:09]} Rb7 {[%emt 0:00:37]} 32. Be2 {[%emt 0:00:28]} a4 {[%emt 0:00:24]} 33. Ba6 {[%emt 0:01:49]} Rbb8 {[%emt 0:01:20]} 34. Rxc7 {[%emt 0:01:39] aiming for Ne6.} axb3 {[%emt 0:00:55]} 35. axb3 {[%emt 0:00:06] The board is on fire.} Rxb3 {[%emt 0:01:19]} 36. Ne6 {[%emt 0:02:24]} (36. Kh1 $14) 36... Rb2 {[%emt 0:00:16]} 37. Be2 $2 {[%emt 0:00:23][%mdl 8192]} (37. Bd2 $1 $11 {and White is okay.}) 37... Kh8 $4 {[%emt 0:02:24][%mdl 8192]} (37... Bg3 $19 38. Nf8+ Rxf8 39. Qxg3 Rxe2) 38. Bd4 $18 {[%emt 0:00:47]} Qf6 {[%emt 0:01:00]} 39. Bxe5 {[%emt 0:00:29]} Qxe5 {[%emt 0:00:01]} 40. Rxd7 {[%emt 0:00:00][%cal Of2h4] Qh4! would kill now.} Qxd5 {[%emt 0:00:00] [#]} 41. Qa7 $1 {[%emt 0:06:52][%csl Ga7][%cal Rd7h7] White mates.} Rxg2+ {[%emt 0:04:42]} (41... Nb7 42. Rxd5) 42. Kxg2 {[%emt 0:01:36]} Rxe2+ {[%emt 0:00:23]} 43. Kg1 {[%emt 0:00:42] Weighted Error Value: White=0.42/Black=0.41} 1-0

[Event "Croatian Team Cup Final 2022"]
[Site "Vodice"]
[Date "2022.05.19"]
[Round "3.20"]
[White "Klobucar, Dean"]
[Black "Novosel, Lovro"]
[Result "0-1"]
[ECO "B53"]
[WhiteElo "2214"]
[BlackElo "2279"]
[Annotator "TA"]
[PlyCount "82"]
[EventDate "2022.05.18"]
[EventType "team-tourn"]
[EventCountry "CRO"]
[SourceTitle "playchess.com"]
[Source "ChessBase"]
[SourceQuality "1"]
[TimeControl "40/5400+30:1800+30"]

{[%evp 20,82,0,0,0,1,26,16,31,9,44,40,36,56,38,15,27,9,16,0,46,34,94,95,275,63,477,104,101,-111,0,-207,-234,-268,0,-158,-151,-289,-288,-370,-322,-329,-302,-385,-204,-205,-212,-209,-209,-212,-193,-212,-188,-201,-205,-237,-252,-289,-295,-590,-570,-839,-839,-29997,-29998]} 1. e4 {[%emt 0:02:44]} c5 {[%emt 0:00:19]} 2. Nf3 {[%emt 0:00:16]} d6 {[%emt 0:00:13]} 3. d4 {[%emt 0:00:09]} cxd4 {[%emt 0:00:05]} 4. Qxd4 {[%emt 0:00:13]} Nc6 {[%emt 0:00:16]} 5. Bb5 {[%emt 0:00:07]} Bd7 {[%emt 0:00:04]} 6. Bxc6 {[%emt 0:00:07]} Bxc6 {[%emt 0:00:06]} 7. Nc3 {[%emt 0:00:24]} Nf6 {[%emt 0:00:36]} 8. Bg5 {[%emt 0:00:29]} e6 {[%emt 0:00:07]} 9. O-O-O {[%emt 0:00:16]} Be7 {[%emt 0:00:37]} 10. Rhe1 {[%emt 0:01:36]} O-O {[%emt 0:09:21]} 11. e5 {[%emt 0:01:14]} dxe5 {[%emt 0:00:09] B53: Sicilian: 2...d6: Lines with Qxd4.} 12. Nxe5 {[%emt 0:00:13] is more profitable than 12.Qh4 at the moment.} Qa5 {[%emt 0:04:56]} 13. Nxc6 {[%emt 0:02:12]} bxc6 {[%emt 0:00:36] The position is equal.} 14. Qe5 {[%emt 0:23:51]} Qa6 {[%emt 0:09:09]} 15. Ne4 {[%emt 0:12:32]} Nd5 {[%emt 0:07:01]} 16. Bxe7 {[%emt 0:13:41]} Nxe7 {[%emt 0:00:13] [#]} 17. Qg5 $146 {[%emt 0:04:34]} ({Predecessor:} 17. Kb1 Nd5 18. Rd3 c5 19. Nxc5 Qc6 20. Ne4 Rab8 21. Rc1 Rb4 22. Nc3 Nb6 23. b3 {1-0 (63) Soozankar,A (2334)-Bakhtiari Kish,M (2062) Arak 2016}) 17... Nd5 {[%emt 0:04:01]} 18. a3 {[%emt 0:01:51]} Rab8 {[%emt 0:06:40]} 19. Rd3 {[%emt 0:05:16]} Qa5 {[%emt 0:17:05]} (19... f6 $11 20. Qh4 (20. Qg4 $2 f5 $19) 20... e5) 20. Qd2 {[%emt 0:06:39]} Qc7 {[%emt 0:06:06]} (20... Qb6 $14 21. c4 Ne7) 21. c4 $16 {[%emt 0:07:24]} Nb6 {[%emt 0:01:49] [#]} (21... Nf4 $16 {was worth a try.}) 22. Rg3 $2 {[%emt 0:03:55]} (22. Nf6+ $1 $18 {[%mdl 512]} gxf6 23. Rg3+ Qxg3 24. hxg3 (24. fxg3 Nxc4 25. Qh6 f5 $18) 24... Nxc4 25. Qh6 Nxb2 26. Re4 (26. Rh1 Rfd8 $14) 26... Nd3+ 27. Kc2) 22... Nd7 $2 {[%emt 0:04:44][%mdl 8192] [#]} (22... Qe7 $14) 23. Qg5 $2 {[%emt 0:02:42]} (23. Qxd7 $1 $18 {[%mdl 512] is the precise move to win.} Qe5 24. Re2) 23... g6 {[%emt 0:03:49]} 24. f4 $2 {[%emt 0:02:50]} (24. Rd3 $16 {[%cal Od3d7] Rxd7! is the strong threat.} f5 25. Rxd7 Qxd7 26. Nf6+ Rxf6 27. Qxf6) 24... Qb6 {[%emt 0:01:59]} ({Black should try} 24... f5 $17 25. Nc3 Nc5) 25. Re2 {[%emt 0:04:25]} (25. b3 $11 {and White has nothing to worry.}) 25... Qg1+ $19 {[%emt 0:00:59]} 26. Kc2 {[%emt 0:00:03]} Qd4 $2 {[%emt 0:00:32]} (26... Qa1 $19 27. b4 c5) 27. Rc3 $2 {[%emt 0:01:16] [#]} (27. b3 $1 $11 Qa1 28. Rd2) 27... Rfd8 $1 $17 {[%emt 0:01:28]} 28. Qg3 {[%emt 0:02:09]} (28. Nf2 $17 {was forced.}) 28... Nc5 $19 {[%emt 0:00:24][%csl Gd8][%cal Rd4d1]} 29. Nf2 {[%emt 0:00:36] [#] Prevents Qd1+.} Ne4 $1 {[%emt 0:01:30][%mdl 512] ( -> ...Nxf2)} 30. Qd3 {[%emt 0:01:06]} (30. Qe3 Nxc3) 30... Nxc3 {[%emt 0:00:42]} ({Weaker is} 30... Nxf2 31. Qxd4 Rxd4 32. Rxf2 $11) 31. Qxc3 {[%emt 0:00:23]} Rb7 {[%emt 0:03:23]} (31... Qxf4 $142 {Threatens to win with ...Rd4.} 32. h3 Qf5+ 33. Ne4 e5) 32. g3 {[%emt 0:00:26]} Rbd7 {[%emt 0:00:35][%cal Bb7d7,Bd7d4,Bd4d1,Bd1c1,Bc1c2,Bc2b2][%mdl 32]} 33. Qxd4 {[%emt 0:00:24]} Rxd4 {[%emt 0:00:02][%mdl 4096] Endgame KRR-KRN} 34. Kc3 {[%emt 0:00:19]} Kf8 {[%emt 0:00:34]} 35. Ng4 {[%emt 0:00:20]} c5 {[%emt 0:02:00][%cal Og6g5] And now ...g5! would win.} 36. Ne5 {[%emt 0:00:21]} Rd1 {[%emt 0:02:03]} 37. Nc6 {[%emt 0:01:16]} Rc1+ {[%emt 0:00:49]} 38. Kb3 {[%emt 0:00:01]} Rd7 {[%emt 0:01:19]} 39. Re5 $2 {[%emt 0:01:00]} (39. Ka2 {was necessary.}) 39... Rb7+ {[%emt 0:00:25]} 40. Ka2 {[%emt 0:00:00]} Rc2 {[%emt 0:00:00]} 41. Rxc5 {[%emt 0:00:51]} Rcxb2+ {[%emt 0:00:36] Weighted Error Value: White=1.06/Black=0.53} 0-1